bitfinex/quotes_ETHUSD_20240729
["timestamp","ask_amount","ask_price","bid_price","bid_amount"]
[1722266570155,0.01,3301.0,3300.1,3.1781984]
[1722266570366,0.01,3301.0,3300.1,0.1479984]
[1722266571478,0.01,3301.0,3300.2,0.06059918]
[1722266571682,0.01,3301.0,3300.6,2.4703]
[1722266571833,0.01,3301.0,3300.8,3.02948]
[1722266572029,0.01,3301.0,3300.7,0.61059314]
[1722266572030,0.01,3301.0,3300.9,3.09004842]
[1722266572284,0.01,3301.0,3300.9,0.06057842]
[1722266572432,0.01,3301.0,3300.6,2.4703]
[1722266575137,0.01,3301.0,3300.1,2.5883984]
[1722266575854,3.02948,3300.9,3300.1,2.5883984]
[1722266576347,0.01,3301.0,3300.1,2.5883984]
[1722266576549,3.0,3301.4,3300.2,0.06059522]
[1722266576757,3.0,3301.4,3300.3,0.06058981]
[1722266576965,7.01671,3301.8,3300.5,3.02983]
[1722266577134,6.02874,3301.7,3300.3,0.06058816]
[1722266577346,3.0,3301.7,3300.6,3.02974]
[1722266577551,1.82,3302.0,3300.7,0.06058704]
[1722266577552,3.02848,3302.0,3300.7,0.06058704]
[1722266577759,3.02848,3302.0,3300.7,3.09023704]
[1722266577945,3.02828,3302.2,3300.8,3.02956]
[1722266578267,7.01613,3302.4,3301.0,3.02932]
[1722266578451,3.02776,3302.8,3301.3,5.51868]
[1722266578635,3.02776,3302.8,3301.4,3.08958509]
[1722266578836,3.02766,3302.9,3301.5,0.06057087]
[1722266579072,1.214219,3303.0,3301.5,0.55791109]
[1722266579282,1.214219,3303.0,3301.3,5.5187]
[1722266579494,3.02779,3302.8,3301.5,3.02886]
[1722266579650,1.214219,3303.0,3301.7,3.02873]
[1722266579849,1.214219,3303.0,3301.6,3.02882]
[1722266579850,3.0277,3302.9,3301.6,3.02882]
[1722266580047,1.214219,3303.0,3301.6,0.605776]
[1722266580250,1.214219,3303.0,3301.9,3.02848]
[1722266580459,1.214219,3303.0,3302.3,2.2971]
[1722266580779,3.0272,3303.4,3302.3,2.35765658]
[1722266580998,3.02661,3304.1,3302.4,0.06055414]
[1722266580999,3.02655,3304.1,3302.4,0.06055414]
[1722266581283,3.02673,3303.9,3302.6,3.0279]
[1722266581598,3.02655,3304.1,3302.7,3.08833889]
[1722266581745,3.02637,3304.3,3302.8,3.08827678]
[1722266581746,3.02646,3304.2,3302.8,3.08827678]
[1722266581946,3.02673,3303.9,3302.8,0.06054678]
[1722266582180,7.01412,3304.6,3302.9,3.02763]
[1722266582181,6.05281,3304.3,3302.9,3.02763]
[1722266582468,6.05281,3304.3,3303.1,2.4077]
[1722266582469,3.02636,3304.3,3303.1,2.4077]
[1722266582780,0.01,3304.0,3303.2,0.06054013]
[1722266583158,0.01,3304.0,3303.4,3.0271]
[1722266583345,0.01,3304.0,3303.5,0.060534]
[1722266583541,3.02679,3303.9,3303.1,2.4077]
[1722266583774,0.01,3304.0,3301.3,4.5291]
[1722266583775,3.02749,3303.1,3302.4,2.3084]
[1722266583972,3.998,3304.0,3302.4,2.3084]
[1722266583973,3.02681,3303.9,3302.4,5.33649]
[1722266584191,3.02672,3303.9,3302.5,0.06054922]
[1722266584388,0.01,3304.0,3302.7,3.02781]
[1722266584747,0.01,3304.0,3302.9,5.40992]
[1722266584947,0.01,3304.0,3303.0,3.08806898]
[1722266585164,0.01,3304.0,3303.2,3.0273]
[1722266585506,0.01,3304.0,3303.3,0.06053422]
[1722266585704,0.01,3304.0,3303.4,3.02711]
[1722266585853,0.01,3304.0,3303.6,3.02692]
[1722266586047,0.01,3304.0,3303.7,3.08742981]
[1722266586284,3.02578,3305.0,3304.1,2.4387]
[1722266586593,6.18681,3305.6,3304.1,2.49922459]
[1722266586594,3.02537,3305.4,3304.1,2.49922459]
[1722266586746,1.213572,3304.7,3304.2,3.02643]
[1722266587089,1.213572,3304.7,3304.3,3.08687068]
[1722266587447,1.213572,3304.7,3304.3,0.06052068]
[1722266587685,1.213572,3304.7,3304.1,2.4387]
[1722266589302,1.213572,3304.7,3304.0,0.123]
[1722266589784,3.0261,3304.6,3304.0,0.123]
[1722266589946,3.02617,3304.5,3304.0,0.123]
[1722266590167,1.213572,3304.7,3304.0,0.123]
[1722266590168,3.02654,3304.1,3304.0,0.123]
[1722266590529,3.02611,3304.6,3304.0,0.123]
[1722266590530,3.0262,3304.5,3304.0,0.123]
[1722266591011,1.213572,3304.7,3304.0,0.123]
[1722266591632,3.02623,3304.5,3304.0,0.123]
[1722266591973,0.55,3304.4,3304.0,0.123]
[1722266592524,0.036462,3304.1,3304.0,0.123]
[1722266593428,0.036462,3304.1,3304.0,3.14963]
[1722266593734,9.116082,3304.1,3304.0,0.123]
[1722266593953,3.02728,3303.3,3302.5,2.2847]
[1722266594091,3.02724,3303.4,3302.5,2.2847]
[1722266594417,3.02711,3303.5,3302.5,2.2847]
[1722266594586,6.02666,3304.0,3302.5,2.2847]
[1722266594587,3.02738,3303.2,3302.5,2.2847]
[1722266595121,3.02771,3302.9,3302.5,2.2847]
[1722266595436,3.02738,3303.2,3301.7,2.3543]
[1722266595643,3.988,3303.7,3301.7,2.3543]
[1722266595644,3.02774,3302.8,3301.7,2.3543]
[1722266595805,3.02756,3303.0,3301.7,2.3543]
[1722266595982,3.02781,3302.8,3301.7,2.3543]
[1722266596185,3.02767,3302.9,3301.7,2.3543]
[1722266596438,0.55,3303.1,3301.7,2.3543]
[1722266596638,3.02702,3303.6,3301.8,0.06055761]
[1722266596836,0.036462,3304.1,3301.9,2.474]
[1722266597154,3.02731,3303.3,3301.9,2.474]
[1722266597337,3.02731,3303.3,3302.0,3.02845]
[1722266597677,0.036462,3304.1,3301.9,2.474]
[1722266597678,3.02763,3303.0,3301.9,2.474]
[1722266597860,3.0277,3302.9,3301.9,2.474]
[1722266598021,3.0275,3303.1,3301.9,2.7214]
[1722266598222,3.02758,3303.0,3301.9,2.7214]
[1722266598424,0.55,3303.0,3301.9,2.684938]
[1722266598626,0.55,3303.0,3301.9,2.437538]
[1722266598627,3.02764,3302.9,3301.9,2.437538]
[1722266598808,0.55,3303.0,3300.1,5.75010424]
[1722266598809,3.0283,3302.2,3300.1,1.21997424]
[1722266599008,0.55,3303.0,3300.1,1.21997424]
[1722266599009,3.02792,3302.6,3300.2,0.06057467]
[1722266599265,3.02801,3302.5,3301.2,3.02918]
[1722266599558,3.02793,3302.6,3301.3,0.06056829]
[1722266599770,0.55,3302.5,3301.4,3.02898]
[1722266600063,3.0279,3302.7,3301.5,0.67243256]
[1722266600286,3.56,3303.0,3301.7,3.02873]
[1722266600287,3.03762,3303.0,3301.7,3.02873]
[1722266600559,3.03762,3303.0,3301.8,0.06056253]
[1722266600560,3.57765,3302.9,3301.8,0.06056253]
[1722266600728,3.02801,3302.5,3300.9,3.02939]
[1722266601055,3.02794,3302.6,3301.0,0.302939]
[1722266601279,3.02838,3302.1,3301.0,0.302939]
[1722266601409,3.02861,3301.9,3301.0,2.4154]
[1722266601613,3.0,3302.5,3301.0,2.4154]
[1722266601614,3.02847,3302.0,3301.0,2.4154]
[1722266601808,3.02885,3301.6,3301.0,2.4154]
[1722266602057,3.02894,3301.5,3301.0,2.4154]
[1722266602249,3.02885,3301.6,3301.0,2.4154]
[1722266602457,3.02909,3301.4,3301.0,2.4154]
[1722266602660,3.02902,3301.4,3300.2,2.2537]
[1722266602816,3.0293,3301.1,3300.2,3.00396984]
[1722266603019,0.55,3301.3,3300.2,3.00396984]
[1722266603250,3.988,3301.9,3300.2,3.00396984]
[1722266603251,3.02865,3301.8,3300.2,6.03406984]
[1722266603461,3.02865,3301.8,3300.2,3.00396984]
[1722266603640,3.02915,3301.3,3300.3,0.61821582]
[1722266603834,3.02922,3301.2,3300.2,3.00396984]
[1722266604062,0.55,3301.7,3300.2,3.00396984]
[1722266604063,3.02911,3301.3,3300.2,3.00396984]
[1722266604577,0.55,3301.7,3300.3,0.06052469]
[1722266604732,0.55,3301.7,3300.2,3.00396984]
[1722266604733,3.02915,3301.3,3300.2,3.00396984]
[1722266605074,3.0293,3301.1,3300.2,2.2537]
[1722266605319,3.02939,3301.0,3300.2,2.2537]
[1722266605435,3.02903,3301.4,3300.2,2.2537]
[1722266605635,7.60312595,3302.4,3300.2,2.2537]
[1722266605636,3.57918,3301.3,3300.2,2.2537]
[1722266605974,3.0,3301.9,3300.3,0.06058961]
[1722266606153,3.02875,3301.7,3300.4,0.23142896]
[1722266606349,3.0,3302.3,3301.0,3.02938]
[1722266606563,3.02801,3302.5,3301.2,2.3392]
[1722266606858,3.988,3303.1,3301.2,2.3392]
[1722266606859,3.02846,3302.1,3301.2,2.3392]
[1722266607062,3.02843,3302.1,3301.2,2.3392]
[1722266607290,3.02834,3302.2,3301.2,2.3392]
[1722266607571,3.02821,3302.3,3301.2,2.3392]
[1722266607772,3.02834,3302.2,3301.2,2.3392]
[1722266607975,0.55,3302.1,3301.2,2.3392]
[1722266608276,3.02827,3302.3,3301.3,0.06057563]
[1722266608474,0.55,3302.2,3301.2,2.3392]
[1722266608674,3.57836,3302.2,3301.2,2.3392]
[1722266608983,3.02856,3301.9,3301.2,2.3392]
[1722266609176,3.02866,3301.8,3301.2,2.3392]
[1722266609380,0.55,3302.2,3301.2,2.3392]
[1722266609594,3.02856,3301.9,3301.2,2.3392]
[1722266609880,0.55,3302.2,3301.2,2.3392]
[1722266609881,3.02838,3302.1,3301.2,2.3392]
[1722266610440,3.02801,3302.5,3301.3,0.06057573]
[1722266610681,0.55,3302.4,3301.3,0.06057573]
[1722266610982,3.03759,3303.0,3301.2,5.60231]
[1722266610983,3.02779,3302.8,3301.4,3.08951772]
[1722266611178,3.02791,3302.6,3301.3,3.02908]
[1722266611495,3.02791,3302.6,3301.2,2.57312]
[1722266611496,3.02775,3302.8,3301.4,0.56022]
[1722266611752,0.01,3303.0,3301.4,0.56022]
[1722266611753,0.01,3303.0,3301.8,2.2851]
[1722266612234,3.02783,3302.7,3301.8,2.2851]
[1722266612517,3.02801,3302.5,3301.8,2.2851]
[1722266612890,3.02829,3302.2,3301.8,2.2851]
[1722266613232,0.01,3303.0,3301.8,2.2851]
[1722266613409,3.0282,3302.3,3301.8,2.2851]
[1722266613784,3.02855,3301.9,3301.8,2.2851]
[1722266613982,3.02855,3301.9,3300.6,3.02975]
[1722266613983,3.02841,3302.1,3301.2,2.4281]
[1722266614185,3.02803,3302.5,3301.2,2.4281]
[1722266614425,3.56,3303.0,3301.2,2.67091]
[1722266614426,3.02792,3302.6,3301.2,2.67091]
[1722266614727,5.13562772,3303.0,3301.5,3.02889]
[1722266614728,3.02779,3302.8,3301.5,3.02889]
[1722266614891,3.02779,3302.8,3301.6,0.36345305]
[1722266615094,0.55,3302.7,3301.7,2.3754]
[1722266615428,3.02801,3302.5,3301.7,2.3754]
[1722266615774,3.57782,3302.7,3301.7,2.3754]
[1722266616127,3.02818,3302.4,3301.7,2.3754]
[1722266616306,3.02821,3302.3,3301.7,2.3754]
[1722266616619,3.0282,3302.3,3301.7,2.3754]
[1722266616822,3.02794,3302.6,3301.7,2.3754]
[1722266617334,3.0282,3302.3,3301.7,2.3754]
[1722266617479,3.02846,3302.1,3301.7,2.3754]
[1722266617675,3.02845,3302.1,3301.7,2.3754]
[1722266617952,3.02836,3302.2,3301.7,2.3754]
[1722266618088,3.02811,3302.4,3301.7,2.3754]
[1722266618284,3.0282,3302.3,3301.7,2.3754]
[1722266618490,3.02839,3302.1,3301.7,2.3754]
[1722266618719,3.02856,3301.9,3301.7,2.3754]
[1722266618895,0.55,3302.7,3300.3,3.02994]
[1722266618896,3.02889,3301.6,3300.3,3.02994]
[1722266619202,3.02889,3301.6,3300.4,5.686694]
[1722266619699,3.964,3302.0,3300.4,5.686694]
[1722266620017,3.0288,3301.7,3300.4,5.686694]
[1722266620353,3.02889,3301.6,3300.4,5.686694]
[1722266620532,3.02892,3301.5,3300.4,2.686694]
[1722266620886,3.02875,3301.7,3300.4,2.686694]
[1722266621113,3.964,3302.5,3300.9,3.02947]
[1722266621356,4.60491142,3302.6,3301.0,2.48377145]
[1722266621483,3.02765,3302.9,3301.7,2.4232]
[1722266621690,6.99155,3303.0,3301.8,0.24232]
[1722266621883,1.89231771,3303.4,3301.9,2.4232]
[1722266621884,4.60429559,3303.4,3301.9,2.4232]
[1722266622088,3.964,3303.5,3302.3,5.43502]
[1722266622323,3.964,3303.5,3302.4,0.06055021]
[1722266622647,3.02719,3303.4,3302.4,0.06055021]
[1722266622787,5.23454782,3304.0,3302.5,3.028]
[1722266622788,3.02696,3303.7,3302.5,3.028]
[1722266623130,7.74893341,3304.0,3302.7,2.4069]
[1722266623131,3.964,3304.0,3302.7,2.4069]
[1722266623312,5.63460021,3304.6,3302.7,2.4069]
[1722266623313,4.60338559,3304.4,3302.7,5.43469]
[1722266623511,3.02633,3304.4,3303.0,3.02747]
[1722266623836,1.57705559,3304.6,3303.0,3.02747]
[1722266623837,3.02638,3304.3,3303.2,2.4442]
[1722266623985,3.02632,3304.4,3303.3,0.06053121]
[1722266624197,3.02632,3304.4,3303.3,0.61374033]
[1722266624435,3.984,3304.9,3303.2,2.4442]
[1722266624436,5.56105559,3304.9,3303.2,2.4442]
[1722266624608,3.02671,3304.0,3303.2,2.4442]
[1722266625491,3.02688,3303.8,3303.2,2.4442]
[1722266625692,3.02696,3303.7,3303.2,2.4442]
[1722266625896,7.00987,3304.9,3303.2,2.4442]
[1722266625897,3.027,3303.6,3303.2,2.4442]
[1722266626149,3.02681,3303.8,3303.2,2.4442]
[1722266626648,1.57703183,3304.2,3303.2,2.4442]
[1722266626809,2.12703183,3304.1,3303.2,2.4442]
[1722266627155,3.02718,3303.4,3302.0,3.0284]
[1722266627307,3.02729,3303.3,3302.1,3.57489]
[1722266627709,3.02711,3303.5,3302.1,3.57489]
[1722266627710,3.02711,3303.5,3302.3,3.02819]
[1722266627910,3.02722,3303.4,3302.1,0.54654]
[1722266628161,3.02742,3303.2,3301.9,5.46548]
[1722266628360,3.02722,3303.4,3302.0,3.02845]
[1722266628645,3.02733,3303.3,3302.1,3.02836]
[1722266629021,4.60413841,3303.7,3302.3,2.4346]
[1722266629223,6.4698365,3304.2,3302.8,2.4346]
[1722266629430,3.02744,3303.2,3302.8,2.4346]
[1722266629721,3.02744,3303.2,3301.1,3.0]
[1722266629722,3.02724,3303.4,3302.1,2.4191]
[1722266629949,3.02728,3303.3,3302.1,2.4191]
[1722266630115,3.02721,3303.4,3302.1,2.4191]
[1722266630507,3.02745,3303.1,3302.1,2.4191]
[1722266630710,7.01086,3303.8,3302.1,2.4191]
[1722266630711,3.02755,3303.0,3302.1,2.4191]
[1722266631106,3.02738,3303.2,3302.1,2.4191]
[1722266631343,3.02718,3303.4,3302.1,5.44744]
[1722266631642,3.02729,3303.3,3302.1,5.992196]
[1722266631846,3.02729,3303.3,3302.1,2.963856]
[1722266632218,3.02721,3303.4,3302.2,3.0282]
[1722266632434,1.57777934,3303.8,3302.5,3.028]
[1722266632739,3.02672,3303.9,3302.6,2.6691]
[1722266633047,3.02682,3303.8,3302.6,5.69701]
[1722266633246,0.01,3304.0,3302.7,3.02781]
[1722266633420,0.01,3304.0,3303.0,2.3627]
[1722266633633,3.02656,3304.1,3303.0,2.3627]
[1722266634675,6.10552119,3304.3,3303.1,0.23627]
[1722266634821,4.60538775,3304.2,3303.1,0.23627]
[1722266635163,3.02645,3304.2,3303.1,0.23627]
[1722266635570,3.02666,3304.0,3303.1,0.23627]
[1722266635727,3.02654,3304.1,3303.1,0.23627]
[1722266636086,3.02663,3304.0,3303.1,0.23627]
[1722266636236,3.02663,3304.0,3303.0,2.3627]
[1722266636439,3.02689,3303.8,3303.0,2.3627]
[1722266636653,3.02666,3304.0,3303.0,2.3627]
[1722266637040,3.02682,3303.8,3303.0,2.3627]
[1722266637547,3.02695,3303.7,3303.0,2.3627]
[1722266637854,3.027,3303.6,3303.0,2.3627]
[1722266638546,3.0271,3303.5,3303.0,2.3627]
[1722266638743,3.027,3303.6,3303.0,2.3627]
[1722266638975,3.0271,3303.5,3303.0,2.3627]
[1722266639286,3.027,3303.6,3303.0,2.3627]
[1722266639646,3.02711,3303.5,3303.0,2.3627]
[1722266639845,1.57954619,3303.7,3303.0,2.3627]
[1722266640081,4.92203542,3304.1,3303.0,2.3627]
[1722266640082,3.02733,3303.3,3303.0,2.3627]
[1722266640395,4.60668619,3303.5,3303.0,2.3627]
[1722266640396,3.02709,3303.5,3303.0,2.3627]
[1722266640751,3.02693,3303.7,3303.0,2.3627]
[1722266640752,4.60647619,3303.7,3303.0,2.3627]
[1722266640951,3.02701,3303.6,3303.0,2.3627]
[1722266641182,1.58035754,3303.8,3303.0,2.3627]
[1722266641355,3.0271,3303.5,3303.0,2.3627]
[1722266641567,1.58035754,3303.8,3303.0,2.3627]
[1722266641778,1.58835754,3304.0,3303.0,2.59897]
[1722266642102,0.008,3304.0,3303.4,2.3736]
[1722266642779,3.02678,3303.9,3303.4,2.3736]
[1722266642962,3.02658,3304.1,3303.4,2.3736]
[1722266643358,1.58035754,3304.2,3303.4,2.3736]
[1722266643558,3.02686,3303.8,3303.4,2.3736]
[1722266643812,3.02686,3303.8,3302.2,3.0]
[1722266643813,3.02724,3303.4,3302.4,2.4308]
[1722266644020,3.02704,3303.6,3302.4,2.4308]
[1722266644021,3.02761,3303.0,3302.4,2.4308]
[1722266644317,3.02732,3303.3,3302.4,2.4308]
[1722266645006,4.60696277,3303.6,3302.4,6.004737]
[1722266645220,4.60696277,3303.6,3302.5,0.06054555]
[1722266645221,1.57992277,3303.6,3302.5,0.06054555]
[1722266645485,1.57992277,3304.0,3302.6,2.4227]
[1722266645636,5.53792277,3304.3,3303.2,5.45006]
[1722266645836,3.02631,3304.4,3303.3,0.60553626]
[1722266645837,3.02627,3304.4,3303.3,0.60553626]
[1722266646156,1.57992277,3304.5,3303.3,0.545006]
[1722266646157,3.0265,3304.2,3303.3,0.545006]
[1722266646296,3.02652,3304.2,3303.2,2.4227]
[1722266646496,1.57992277,3304.4,3303.2,2.4227]
[1722266646692,1.57992277,3304.5,3303.2,5.45005]
[1722266646940,1.57896693,3304.5,3303.2,5.45005]
[1722266647247,3.02612,3304.6,3303.2,2.4227]
[1722266647248,3.02656,3304.1,3303.2,2.4227]
[1722266647398,3.02645,3304.2,3303.2,2.4227]
[1722266647725,1.57896693,3304.4,3303.2,2.4227]
[1722266648035,1.57896693,3304.1,3303.2,2.4227]
[1722266648427,3.02638,3304.3,3303.2,2.4227]
[1722266648428,3.02719,3303.4,3303.2,2.4227]
[1722266648592,3.02727,3303.3,3303.2,2.4227]
[1722266649750,3.02676,3303.9,3303.2,2.4227]
[1722266649751,3.02701,3303.6,3303.2,2.4227]
[1722266649952,3.0269,3303.7,3303.2,2.4227]
[1722266650287,4.60645051,3303.8,3303.2,2.4227]
[1722266650451,3.02687,3303.8,3303.2,2.4227]
[1722266650766,1.57958051,3304.0,3303.2,2.4227]
[1722266650976,3.02719,3303.4,3303.2,2.4227]
[1722266651471,3.02741,3303.2,3302.0,2.4169]
[1722266651653,3.02741,3303.2,3301.2,2.4169]
[1722266651654,1.58111537,3302.8,3301.2,2.4169]
[1722266651859,1.58132239,3302.5,3301.2,2.4169]
[1722266652067,1.58149233,3302.1,3301.2,2.4169]
[1722266652244,3.02893,3301.5,3301.2,2.4169]
[1722266652441,3.0291,3301.3,3301.2,2.4169]
[1722266652676,1.58196575,3301.5,3301.2,2.4169]
[1722266652828,3.02883,3301.6,3301.2,2.4169]
[1722266653022,1.58190801,3301.6,3301.2,2.4169]
[1722266653225,1.58190801,3301.7,3301.2,2.4169]
[1722266653458,4.61082021,3301.5,3301.2,2.4169]
[1722266653660,1.58181021,3301.6,3301.2,2.4169]
[1722266653842,1.58171702,3301.8,3301.2,2.4169]
[1722266654042,3.02893,3301.5,3301.2,2.4169]
[1722266654247,3.02892,3301.6,3301.2,2.4169]
[1722266654777,1.58181021,3301.7,3301.2,2.4169]
[1722266654778,3.02883,3301.7,3301.2,2.4169]
[1722266654928,3.0291,3301.3,3301.2,2.4169]
[1722266655127,4.61062021,3301.7,3301.2,2.4169]
[1722266655565,1.58181021,3301.7,3301.2,2.4169]
[1722266655746,1.58181021,3301.9,3301.2,2.4169]
[1722266655947,1.58181021,3301.9,3301.3,0.06057262]
[1722266656166,3.02814,3302.4,3301.3,0.30831988]
[1722266656484,1.58146096,3302.6,3301.5,5.33345]
[1722266656812,1.58146096,3302.6,3301.5,2.3046]
[1722266656933,3.02837,3302.2,3301.5,2.3046]
[1722266657335,3.02838,3302.1,3301.5,2.3046]
[1722266657550,1.58146096,3302.2,3301.5,2.3046]
[1722266657782,4.60995096,3302.0,3301.5,2.3046]
[1722266657936,3.02872,3301.8,3300.7,2.3483]
[1722266658135,3.02872,3301.8,3300.8,0.537797]
[1722266658466,3.02916,3301.3,3300.7,2.3483]
[1722266658771,3.02929,3301.1,3300.7,2.3483]
[1722266658973,1.58146096,3301.5,3300.7,2.3483]
[1722266659184,3.02945,3301.0,3300.7,2.3483]
[1722266659351,3.02948,3300.9,3300.7,2.3483]
[1722266659952,3.02948,3300.9,3298.4,0.00181085]
[1722266659953,16.10484,3300.1,3298.4,0.00181085]
[1722266660256,3.81903,3300.8,3298.4,0.00181085]
[1722266660257,9.09309,3299.2,3298.4,0.00181085]
[1722266660460,14.68123583,3299.2,3299.1,0.2895301]
[1722266660663,7.95871634,3299.2,3299.1,0.0405301]
[1722266660986,9.53914567,3299.2,3299.1,0.0405301]
[1722266661494,10.08914567,3299.2,3299.1,0.0405301]
[1722266661640,13.40970667,3299.2,3299.1,0.0405301]
[1722266662043,13.37867667,3299.2,3299.1,0.0405301]
[1722266662243,12.82867667,3299.2,3299.1,0.0405301]
[1722266662443,16.40970667,3299.2,3299.1,0.0405301]
[1722266663096,19.44073667,3299.2,3299.1,0.0405301]
[1722266663438,16.40970667,3299.2,3299.1,0.0405301]
[1722266663979,13.37867667,3299.2,3299.1,0.0405301]
[1722266664149,12.932621,3299.2,3299.1,0.0405301]
[1722266664383,16.27936753,3299.2,3299.1,0.0405301]
[1722266664966,13.24833753,3299.2,3299.1,0.0405301]
[1722266665175,12.932621,3299.2,3299.1,0.0405301]
[1722266665491,12.932621,3299.2,3299.1,0.0305301]
[1722266665709,13.24834961,3299.2,3299.1,0.0305301]
[1722266666007,16.27937961,3299.2,3299.1,0.0305301]
[1722266667458,6.66731961,3299.2,3299.1,0.0305301]
[1722266667656,9.382621,3299.2,3299.1,0.0305301]
[1722266668307,6.351591,3299.2,3299.1,0.0305301]
[1722266668602,6.351591,3299.2,3299.1,0.0205301]
[1722266669186,6.901591,3299.2,3299.1,0.0205301]
[1722266669510,6.351591,3299.2,3299.1,0.0205301]
[1722266669855,3.320561,3299.2,3299.1,0.0205301]
[1722266670057,0.289531,3299.2,3299.1,0.0205301]
[1722266672020,0.289531,3299.2,3299.1,0.08113978]
[1722266672237,3.425295,3300.1,3299.1,0.08113978]
[1722266672774,0.395075,3300.1,3299.1,0.0205301]
[1722266673074,3.425345,3300.1,3299.1,0.0205301]
[1722266673306,3.0304,3299.9,3299.1,0.0205301]
[1722266673627,0.395075,3300.1,3299.1,0.0205301]
[1722266673782,0.395075,3300.1,3299.2,2.325]
[1722266673980,0.395075,3300.1,3299.3,3.09154423]
[1722266674328,0.516555,3300.1,3299.3,0.06060423]
[1722266674653,0.516555,3300.1,3299.4,3.03083]
[1722266674777,0.516555,3300.1,3299.6,3.0306]
[1722266674976,0.395075,3300.1,3299.7,0.06059851]
[1722266675225,0.395075,3300.1,3299.8,0.06059831]
[1722266675592,0.395075,3300.1,3300.0,2.4657]
[1722266675797,0.395075,3300.1,3300.0,5.55659177]
[1722266675992,0.395075,3300.1,3300.0,8.58689177]
[1722266676504,0.395075,3300.1,3300.0,5.55659177]
[1722266676706,0.395075,3300.1,3300.0,6.05165918]
[1722266676887,3.02886,3301.6,3300.0,3.02135918]
[1722266677102,3.02893,3301.5,3300.0,2.4657]
[1722266677306,3.02876,3301.7,3300.2,3.03011]
[1722266677475,3.02887,3301.6,3300.3,3.02994]
[1722266677827,3.02904,3301.4,3300.2,3.03011]
[1722266678025,3.02911,3301.3,3300.3,0.303011]
[1722266678232,3.02902,3301.4,3300.0,5.49598]
[1722266678586,3.0,3302.1,3300.2,3.03004]
[1722266678787,3.02895,3301.5,3300.2,3.03004]
[1722266678981,3.02895,3301.5,3300.3,3.333024]
[1722266679176,3.02905,3301.4,3300.3,0.303004]
[1722266679583,3.02911,3301.3,3300.3,0.303004]
[1722266680043,3.02901,3301.4,3300.0,2.4657]
[1722266680182,3.0,3301.3,3300.0,2.4657]
[1722266680383,3.02972,3300.7,3300.0,2.4657]
[1722266680616,3.02931,3301.1,3300.0,2.4657]
[1722266680860,0.55,3301.2,3300.0,2.4657]
[1722266681179,3.03064,3299.7,3299.1,2.4862301]
[1722266681325,3.03036,3300.0,3299.1,2.4862301]
[1722266682132,3.03058,3299.7,3299.1,2.4862301]
[1722266682364,3.03049,3299.8,3299.1,2.4862301]
[1722266682666,3.0301,3300.3,3299.1,2.4862301]
[1722266682832,3.0302,3300.2,3299.1,2.73485311]
[1722266683165,3.03022,3300.1,3299.1,2.73485311]
[1722266683372,3.02992,3300.5,3299.1,5.76589311]
[1722266683576,3.02992,3300.5,3299.2,0.57658931]
[1722266683930,3.02951,3300.9,3299.3,0.06060329]
[1722266684227,3.03024,3300.1,3299.1,2.4862301]
[1722266684573,3.03023,3300.1,3299.1,2.4862301]
[1722266684935,3.03006,3300.3,3299.1,3.03797411]
[1722266685151,3.03027,3300.1,3299.1,3.03797411]
[1722266685669,3.02966,3300.7,3299.3,3.03085]
[1722266685836,3.02982,3300.6,3299.5,2.3966]
[1722266686028,3.0294,3301.0,3299.7,3.03057]
[1722266686230,3.02925,3301.2,3299.9,3.03038]
[1722266686726,0.31531576,3301.9,3299.9,3.03038]
[1722266686727,3.02929,3301.1,3299.9,3.03038]
[1722266686926,3.02928,3301.2,3300.0,3.03027]
[1722266687126,3.02904,3301.4,3300.0,3.03027]
[1722266687332,3.02904,3301.4,3300.2,2.2551]
[1722266687561,3.02925,3301.2,3300.2,2.2551]
[1722266687741,3.02904,3301.4,3300.3,0.06058775]
[1722266688041,3.02925,3301.2,3300.3,0.06058775]
[1722266688433,3.02944,3301.0,3300.3,0.06058775]
[1722266688661,3.02925,3301.2,3300.3,0.06058775]
[1722266688829,8.524403,3302.5,3300.3,0.32245923]
[1722266689032,3.984,3302.7,3300.3,0.32245923]
[1722266689033,3.02891,3301.6,3300.3,0.32245923]
[1722266689228,3.02897,3301.5,3300.3,0.26187148]
[1722266689470,3.02929,3301.1,3300.3,0.26187148]
[1722266689679,0.3151146,3302.4,3300.3,0.26187148]
[1722266689826,3.02898,3301.5,3300.3,3.29189148]
[1722266690024,3.02855,3302.0,3300.4,0.55469915]
[1722266690025,3.0288,3301.7,3300.4,0.55469915]
[1722266690289,3.02931,3301.1,3300.2,2.2551]
[1722266690628,3.02896,3301.5,3300.2,2.2551]
[1722266690956,3.02875,3301.7,3300.5,3.02978]
[1722266691135,3.02858,3301.9,3300.6,5.55528041]
[1722266691337,0.008,3302.0,3300.7,3.88815604]
[1722266691534,0.008,3302.0,3300.8,3.09008843]
[1722266691978,0.008,3302.0,3300.9,2.3629]
[1722266692131,0.008,3302.0,3301.0,0.06057354]
[1722266692569,3.02867,3301.8,3300.9,2.3629]
[1722266693074,3.03648,3302.0,3301.0,0.06057646]
[1722266693384,3.02885,3301.6,3300.9,2.3629]
[1722266693729,6.05777,3301.6,3300.9,2.3629]
[1722266693931,3.02885,3301.6,3300.9,2.3629]
[1722266694135,3.02829,3302.2,3301.0,0.06057663]
[1722266694332,3.02847,3302.0,3301.0,0.60587929]
[1722266694677,3.02806,3302.5,3301.3,2.4558]
[1722266694881,3.0,3302.4,3301.4,0.06056573]
[1722266695395,10.33776,3302.8,3301.5,3.02891]
[1722266695396,3.02795,3302.6,3301.5,3.02891]
[1722266695549,3.02783,3302.7,3301.6,2.32376241]
[1722266695752,3.02759,3303.0,3301.6,2.32376241]